[Event "Elite Hotels Open 2019"]
[Site "Vaxjo"]
[Date "2019.02.10"]
[Round "7.12"]
[White "Svensson, Mikael"]
[Black "Dragicevic, Drazen"]
[Result "0-1"]
[ECO "A40"]
[WhiteElo "2128"]
[BlackElo "2339"]
[Annotator "NA"]
[PlyCount "138"]
[EventDate "2019.02.08"]
[EventType "swiss"]
[EventCountry "SWE"]
[SourceTitle "playchess.com"]
[Source "ChessBase"]
[SourceQuality "1"]
[TimeControl "5400+30"]

1. d4 {[%emt 0:00:00]} Nf6 {[%emt 0:05:23]} 2. Nf3 {[%emt 0:00:00]} e6 {[%emt 0:00:30]} 3. Bg5 {[%emt 0:00:00]} b6 {[%emt 0:00:33]} 4. e3 {[%emt 0:00:24]} h6 {[%emt 0:00:24]} 5. Bh4 {[%emt 0:00:06]} Bb7 {[%emt 0:00:07]} 6. Bd3 {[%emt 0:00:47]} c5 {[%emt 0:00:49]} 7. c3 {[%emt 0:00:09]} Be7 {[%emt 0:00:28]} 8. Nbd2 {[%emt 0:00:22]} g5 {[%emt 0:22:40]} 9. Bg3 {[%emt 0:00:07]} g4 {[%emt 0:00:07]} 10. Ne5 {[%emt 0:07:42]} h5 {[%emt 0:03:14]} 11. Qc2 {[%emt 0:08:06]} d6 {[%emt 0:15:52]} 12. Qa4+ {[%emt 0:28:39]} Kf8 {[%emt 0:00:18]} 13. Nec4 {[%emt 0:01:02]} h4 {[%emt 0:06:00]} 14. Bf4 {[%emt 0:02:51]} h3 {[%emt 0:02:57]} 15. e4 {[%emt 0:00:16]} cxd4 {[%emt 0:05:10]} 16. cxd4 {[%emt 0:02:36]} d5 {[%emt 0:01:43]} 17. Nd6 {[%emt 0:08:52]} Bxd6 {[%emt 0:14:17]} 18. Bxd6+ {[%emt 0:00:06]} Qxd6 {[%emt 0:00:05]} 19. e5 {[%emt 0:00:04]} Qd8 {[%emt 0:01:24]} 20. Qa3+ {[%emt 0:08:57]} Qe7 {[%emt 0:03:27]} 21. Qxe7+ {[%emt 0:01:21]} Kxe7 {[%emt 0:00:05]} 22. exf6+ {[%emt 0:00:04]} Kxf6 {[%emt 0:00:07]} 23. gxh3 {[%emt 0:00:27]} Rxh3 {[%emt 0:00:51]} 24. Be2 {[%emt 0:04:23]} Rh4 {[%emt 0:00:21]} 25. Nf1 {[%emt 0:04:32]} Ba6 {[%emt 0:02:03]} 26. Rc1 {[%emt 0:03:13]} Bxe2 {[%emt 0:00:14]} 27. Kxe2 {[%emt 0:00:02]} Na6 {[%emt 0:00:15]} 28. Rg1 {[%emt 0:02:34]} Ke7 {[%emt 0:02:34]} 29. Rg3 {[%emt 0:00:12]} Kd7 {[%emt 0:01:48]} 30. Rgc3 {[%emt 0:02:14]} Rhh8 {[%emt 0:01:26]} 31. f3 {[%emt 0:04:40]} gxf3+ {[%emt 0:00:26]} 32. Rxf3 {[%emt 0:00:24]} f5 {[%emt 0:01:21]} 33. Rg3 {[%emt 0:00:33]} Rhg8 {[%emt 0:01:44]} 34. Nd2 {[%emt 0:02:28]} Rxg3 {[%emt 0:01:42]} 35. hxg3 {[%emt 0:00:06]} Rg8 {[%emt 0:00:37]} 36. Rc3 {[%emt 0:00:53]} Nb4 {[%emt 0:00:55]} 37. Nf3 {[%emt 0:00:32]} Nc6 {[%emt 0:00:52]} 38. b4 {[%emt 0:03:12]} b5 {[%emt 0:00:12]} 39. a4 {[%emt 0:00:36]} Rb8 {[%emt 0:00:34]} 40. a5 {[%emt 0:00:46]} Rc8 {[%emt 0:01:50]} 41. Rb3 {[%emt 0:00:41]} Kd6 {[%emt 0:00:34]} 42. Kf2 {[%emt 0:01:34]} Ne7 {[%emt 0:01:33]} 43. Ne5 {[%emt 0:00:35]} Rc2+ {[%emt 0:00:09]} 44. Kf3 {[%emt 0:00:23]} Nc6 {[%emt 0:00:50]} 45. Nxc6 {[%emt 0:00:41]} Rxc6 {[%emt 0:00:06]} 46. Ke3 {[%emt 0:00:42]} Rc4 {[%emt 0:00:15]} 47. Kd3 {[%emt 0:00:24]} Ke7 {[%emt 0:00:21]} 48. Rb1 {[%emt 0:00:11]} Kf6 {[%emt 0:00:33]} 49. Rh1 {[%emt 0:00:46]} Kg7 {[%emt 0:02:16]} 50. Re1 {[%emt 0:00:23]} Kf6 {[%emt 0:00:43]} 51. Rh1 {[%emt 0:00:07]} Rxb4 {[%emt 0:00:06]} 52. Rh6+ {[%emt 0:01:03]} Kg5 {[%emt 0:00:17]} 53. Rxe6 {[%emt 0:00:04]} Rb3+ {[%emt 0:00:06]} 54. Kc2 {[%emt 0:01:02]} Rxg3 {[%emt 0:00:13]} 55. Ra6 {[%emt 0:00:17]} Ra3 {[%emt 0:01:31]} 56. Rxa7 {[%emt 0:00:16]} Kf4 {[%emt 0:00:11]} 57. a6 {[%emt 0:00:32]} Ke4 {[%emt 0:01:11]} 58. Ra8 {[%emt 0:00:08]} Kxd4 {[%emt 0:00:15]} 59. a7 {[%emt 0:00:07]} b4 {[%emt 0:01:03]} 60. Kb2 {[%emt 0:00:52]} f4 {[%emt 0:01:13]} 61. Rf8 {[%emt 0:01:31]} Rxa7 {[%emt 0:00:05]} 62. Rxf4+ {[%emt 0:00:07]} Kc5 {[%emt 0:00:09]} 63. Kb3 {[%emt 0:00:12]} Ra3+ {[%emt 0:00:10]} 64. Kb2 {[%emt 0:00:06]} Rg3 {[%emt 0:00:14]} 65. Rh4 {[%emt 0:00:22]} Re3 {[%emt 0:01:03]} 66. Rg4 {[%emt 0:00:20]} Re4 {[%emt 0:00:11]} 67. Rg8 {[%emt 0:01:03]} Kc4 {[%emt 0:00:45]} 68. Rc8+ {[%emt 0:00:42]} Kd3 {[%emt 0:00:33]} 69. Kb3 {[%emt 0:00:27]} Ke2 {[%emt 0:01:44]} 0-1

[Event "Elite Hotels Open 2019"]
[Site "Vaxjo"]
[Date "2019.02.10"]
[Round "7.13"]
[White "Stahlberg, David"]
[Black "Lindh, Fredrik"]
[Result "1/2-1/2"]
[ECO "A48"]
[WhiteElo "2079"]
[BlackElo "2244"]
[Annotator "NA"]
[PlyCount "79"]
[EventDate "2019.02.08"]
[EventType "swiss"]
[EventCountry "SWE"]
[SourceTitle "playchess.com"]
[Source "ChessBase"]
[SourceQuality "1"]
[TimeControl "5400+30"]

1. Nf3 {[%emt 0:00:00]} Nf6 {[%emt 0:00:00]} 2. d4 {[%emt 0:00:00]} g6 {[%emt 0:00:00]} 3. e3 {[%emt 0:00:41]} Bg7 {[%emt 0:00:24]} 4. Be2 {[%emt 0:00:07]} O-O {[%emt 0:01:50]} 5. O-O {[%emt 0:00:07]} c5 {[%emt 0:01:12]} 6. c3 {[%emt 0:00:17]} d5 {[%emt 0:10:09]} 7. Nbd2 {[%emt 0:04:51]} cxd4 {[%emt 0:00:26]} 8. exd4 {[%emt 0:00:21]} Nc6 {[%emt 0:00:13]} 9. Re1 {[%emt 0:00:19]} Bd7 {[%emt 0:06:40]} 10. Bd3 {[%emt 0:01:56]} Rc8 {[%emt 0:02:18]} 11. h3 {[%emt 0:04:33]} Nh5 {[%emt 0:08:37]} 12. Nb3 {[%emt 0:04:43]} Qc7 {[%emt 0:06:00]} 13. Bd2 {[%emt 0:03:42]} b6 {[%emt 0:01:38]} 14. Rc1 {[%emt 0:17:38]} Nf4 {[%emt 0:20:33]} 15. Bf1 {[%emt 0:02:49]} Nh5 {[%emt 0:07:46]} 16. c4 {[%emt 0:09:04]} dxc4 {[%emt 0:04:48]} 17. Bxc4 {[%emt 0:00:27]} Qd6 {[%emt 0:00:06]} 18. a3 {[%emt 0:10:49]} a5 {[%emt 0:06:36]} 19. Be3 {[%emt 0:02:05]} a4 {[%emt 0:01:54]} 20. Nbd2 {[%emt 0:02:29]} Na5 {[%emt 0:00:26]} 21. Ne4 {[%emt 0:01:57]} Qb8 {[%emt 0:01:21]} 22. Ba2 {[%emt 0:01:16]} Qb7 {[%emt 0:03:18]} 23. Neg5 {[%emt 0:11:28]} e6 {[%emt 0:08:56]} 24. Bd2 {[%emt 0:06:25]} Rxc1 {[%emt 0:01:00]} 25. Bxc1 {[%emt 0:00:08]} h6 {[%emt 0:01:03]} 26. Ne4 {[%emt 0:05:05]} Bc6 {[%emt 0:00:31]} 27. Nd6 {[%emt 0:01:10]} Bxf3 {[%emt 0:02:06]} 28. gxf3 {[%emt 0:01:54]} Qd7 {[%emt 0:01:10]} 29. Nxf7 {[%emt 0:00:32]} Rxf7 {[%emt 0:02:16]} 30. Bxe6 {[%emt 0:01:19]} Qxd4 {[%emt 0:00:04]} 31. Qc2 {[%emt 0:02:18]} Qf6 {[%emt 0:00:15]} 32. Bxf7+ {[%emt 0:01:56]} Qxf7 {[%emt 0:00:06]} 33. Qxa4 {[%emt 0:00:29]} Qxf3 {[%emt 0:00:37]} 34. Qe8+ {[%emt 0:01:45]} Kh7 {[%emt 0:00:08]} 35. Qe6 {[%emt 0:01:07]} Ng3 {[%emt 0:02:13]} 36. fxg3 {[%emt 0:01:05]} Qxg3+ {[%emt 0:00:05]} 37. Kh1 {[%emt 0:00:20]} Qf3+ {[%emt 0:00:05]} 38. Kh2 {[%emt 0:00:26]} Qf2+ {[%emt 0:00:09]} 39. Kh1 {[%emt 0:00:04]} Qf3+ {[%emt 0:00:10]} 40. Kh2 {[%emt 0:00:05]} 1/2-1/2

[Event "Elite Hotels Open 2019"]
[Site "Vaxjo"]
[Date "2019.02.10"]
[Round "7.14"]
[White "Lindborg, Patrik"]
[Black "Torngren, Gustav"]
[Result "1-0"]
[ECO "A61"]
[WhiteElo "2210"]
[BlackElo "2057"]
[Annotator "NA"]
[PlyCount "61"]
[EventDate "2019.02.08"]
[EventType "swiss"]
[EventCountry "SWE"]
[SourceTitle "playchess.com"]
[Source "ChessBase"]
[SourceQuality "1"]
[TimeControl "5400+30"]

1. d4 {[%emt 0:00:00]} Nf6 {[%emt 0:00:00]} 2. c4 {[%emt 0:00:00]} e6 {[%emt 0:00:00]} 3. Nf3 {[%emt 0:00:00]} c5 {[%emt 0:01:57]} 4. d5 {[%emt 0:00:20]} exd5 {[%emt 0:00:16]} 5. cxd5 {[%emt 0:00:03]} d6 {[%emt 0:00:12]} 6. Nc3 {[%emt 0:00:10]} g6 {[%emt 0:00:14]} 7. e4 {[%emt 0:02:55]} Bg7 {[%emt 0:00:38]} 8. h3 {[%emt 0:00:16]} O-O {[%emt 0:00:23]} 9. Bd3 {[%emt 0:00:03]} Re8 {[%emt 0:00:37]} 10. O-O {[%emt 0:00:45]} a6 {[%emt 0:12:19]} 11. a4 {[%emt 0:01:36]} Nbd7 {[%emt 0:00:14]} 12. Rb1 {[%emt 0:18:21]} Qc7 {[%emt 0:02:02]} 13. b3 {[%emt 0:05:47]} c4 {[%emt 0:12:13]} 14. bxc4 {[%emt 0:00:34]} Nc5 {[%emt 0:00:19]} 15. Re1 {[%emt 0:01:49]} Nfd7 {[%emt 0:01:06]} 16. Qc2 {[%emt 0:07:02]} Nxd3 {[%emt 0:05:41]} 17. Qxd3 {[%emt 0:00:03]} Nc5 {[%emt 0:00:18]} 18. Qc2 {[%emt 0:13:31]} f5 {[%emt 0:03:12]} 19. Be3 {[%emt 0:10:09]} b6 {[%emt 0:08:33]} 20. Nd4 {[%emt 0:03:20]} Nxe4 {[%emt 0:10:56]} 21. Nxe4 {[%emt 0:00:44]} Rxe4 {[%emt 0:00:08]} 22. Nc6 {[%emt 0:00:45]} Bd7 {[%emt 0:02:08]} 23. Qb3 {[%emt 0:09:40]} Rae8 {[%emt 0:05:00]} 24. Rec1 {[%emt 0:01:08]} f4 {[%emt 0:08:36]} 25. Bxb6 {[%emt 0:02:39]} Qc8 {[%emt 0:00:57]} 26. c5 {[%emt 0:01:41]} dxc5 {[%emt 0:00:56]} 27. Bxc5 {[%emt 0:00:40]} f3 {[%emt 0:03:15]} 28. Ne7+ {[%emt 0:01:11]} R8xe7 {[%emt 0:00:08]} 29. Bxe7 {[%emt 0:00:13]} Qe8 {[%emt 0:00:27]} 30. d6+ {[%emt 0:00:35]} Be6 {[%emt 0:00:48]} 31. Qxf3 {[%emt 0:01:10]} 1-0

[Event "Elite Hotels Open 2019"]
[Site "Vaxjo"]
[Date "2019.02.10"]
[Round "7.15"]
[White "Goransson, Martin"]
[Black "Olofsson-Dolk, Mattis"]
[Result "1-0"]
[ECO "A37"]
[WhiteElo "2074"]
[BlackElo "2172"]
[Annotator "NA"]
[PlyCount "67"]
[EventDate "2019.02.08"]
[EventType "swiss"]
[EventCountry "SWE"]
[SourceTitle "playchess.com"]
[Source "ChessBase"]
[SourceQuality "1"]
[TimeControl "5400+30"]

1. c4 {[%emt 0:00:00]} g6 {[%emt 0:00:00]} 2. g3 {[%emt 0:00:00]} c5 {[%emt 0:00:00]} 3. Bg2 {[%emt 0:00:00]} Bg7 {[%emt 0:00:00]} 4. Nc3 {[%emt 0:00:14]} Nc6 {[%emt 0:00:00]} 5. Nf3 {[%emt 0:00:09]} d6 {[%emt 0:00:22]} 6. O-O {[%emt 0:00:18]} e6 {[%emt 0:00:05]} 7. e3 {[%emt 0:03:30]} Nge7 {[%emt 0:00:15]} 8. d4 {[%emt 0:00:27]} O-O {[%emt 0:00:17]} 9. b3 {[%emt 0:02:52]} cxd4 {[%emt 0:01:19]} 10. Nxd4 {[%emt 0:06:25]} Nxd4 {[%emt 0:00:32]} 11. exd4 {[%emt 0:00:04]} Nf5 {[%emt 0:00:14]} 12. Ne2 {[%emt 0:00:36]} Rb8 {[%emt 0:04:36]} 13. Bb2 {[%emt 0:04:17]} Bd7 {[%emt 0:02:47]} 14. Qd2 {[%emt 0:03:49]} Qc7 {[%emt 0:05:44]} 15. Rfd1 {[%emt 0:08:30]} Rfd8 {[%emt 0:06:38]} 16. a4 {[%emt 0:17:05]} Be8 {[%emt 0:04:33]} 17. d5 {[%emt 0:08:52]} e5 {[%emt 0:02:50]} 18. Bh3 {[%emt 0:04:10]} Bd7 {[%emt 0:02:39]} 19. g4 {[%emt 0:04:30]} Nh4 {[%emt 0:06:12]} 20. Qe3 {[%emt 0:00:20]} f5 {[%emt 0:00:46]} 21. Qg3 {[%emt 0:00:58]} fxg4 {[%emt 0:00:33]} 22. Bxg4 {[%emt 0:00:07]} Bxg4 {[%emt 0:08:01]} 23. Qxg4 {[%emt 0:00:05]} Nf5 {[%emt 0:00:13]} 24. Ng3 {[%emt 0:00:37]} Nxg3 {[%emt 0:01:42]} 25. hxg3 {[%emt 0:02:01]} Rf8 {[%emt 0:00:36]} 26. Qe6+ {[%emt 0:03:24]} Kh8 {[%emt 0:02:31]} 27. Ba3 {[%emt 0:00:10]} Rf6 {[%emt 0:00:49]} 28. Qg4 {[%emt 0:01:04]} Rbf8 {[%emt 0:03:55]} 29. Rf1 {[%emt 0:01:46]} Qf7 {[%emt 0:09:54]} 30. Ra2 {[%emt 0:01:14]} Bh6 {[%emt 0:02:46]} 31. Re2 {[%emt 0:00:24]} Be3 {[%emt 0:03:49]} 32. Bxd6 {[%emt 0:00:52]} Rxd6 {[%emt 0:09:08]} 33. Rxe3 {[%emt 0:00:08]} Rf6 {[%emt 0:00:11]} 34. Qe2 {[%emt 0:00:27]} 1-0

[Event "Elite Hotels Open 2019"]
[Site "Vaxjo"]
[Date "2019.02.10"]
[Round "7.16"]
[White "Lindahl, Emil"]
[Black "Mardell, Jonas"]
[Result "1-0"]
[ECO "A04"]
[WhiteElo "2160"]
[BlackElo "2029"]
[Annotator "NA"]
[PlyCount "61"]
[EventDate "2019.02.08"]
[EventType "swiss"]
[EventCountry "SWE"]
[SourceTitle "playchess.com"]
[Source "ChessBase"]
[SourceQuality "1"]
[TimeControl "5400+30"]

1. Nf3 {[%emt 0:03:41]} c5 {[%emt 0:00:01]} 2. c4 {[%emt 0:03:03]} Nc6 {[%emt 0:02:52]} 3. g3 {[%emt 0:00:38]} Nf6 {[%emt 0:02:12]} 4. Bg2 {[%emt 0:00:13]} d6 {[%emt 0:02:00]} 5. O-O {[%emt 0:01:53]} g6 {[%emt 0:19:33]} 6. b3 {[%emt 0:03:01]} Bg7 {[%emt 0:00:09]} 7. Bb2 {[%emt 0:00:05]} O-O {[%emt 0:06:28]} 8. Nc3 {[%emt 0:04:55]} Bf5 {[%emt 0:07:16]} 9. d3 {[%emt 0:04:28]} Qd7 {[%emt 0:03:46]} 10. Re1 {[%emt 0:01:05]} e5 {[%emt 0:03:02]} 11. e3 {[%emt 0:04:54]} Nb4 {[%emt 0:05:50]} 12. Bf1 {[%emt 0:10:36]} e4 {[%emt 0:08:13]} 13. dxe4 {[%emt 0:02:03]} Nxe4 {[%emt 0:02:23]} 14. Na4 {[%emt 0:08:21]} Bxb2 {[%emt 0:04:26]} 15. Nxb2 {[%emt 0:00:08]} Bg4 {[%emt 0:00:29]} 16. a3 {[%emt 0:24:09]} Ng5 {[%emt 0:12:44]} 17. Nxg5 {[%emt 0:01:39]} Bxd1 {[%emt 0:00:32]} 18. Rexd1 {[%emt 0:01:53]} Qe7 {[%emt 0:02:17]} 19. Nh3 {[%emt 0:05:31]} Nc2 {[%emt 0:04:30]} 20. Ra2 {[%emt 0:00:44]} Qf6 {[%emt 0:06:44]} 21. Na4 {[%emt 0:02:39]} Qf3 {[%emt 0:01:46]} 22. Nc3 {[%emt 0:05:14]} Nxe3 {[%emt 0:02:22]} 23. Rd3 {[%emt 0:00:31]} Rae8 {[%emt 0:00:01]} 24. Nd5 {[%emt 0:00:18]} Re5 {[%emt 0:01:05]} 25. Nhf4 {[%emt 0:05:53]} g5 {[%emt 0:00:13]} 26. Be2 {[%emt 0:00:27]} Qxe2 {[%emt 0:00:54]} 27. Nxe2 {[%emt 0:00:17]} Nf5 {[%emt 0:01:01]} 28. Nf6+ {[%emt 0:00:58]} Kg7 {[%emt 0:00:14]} 29. Nd7 {[%emt 0:00:11]} Rxe2 {[%emt 0:00:35]} 30. Rxe2 {[%emt 0:00:07]} Rd8 {[%emt 0:00:09]} 31. Nxc5 {[%emt 0:00:16]} 1-0

[Event "Elite Hotels Open 2019"]
[Site "Vaxjo"]
[Date "2019.02.10"]
[Round "8.3"]
[White "Bellon Lopez, Juan Manuel"]
[Black "Golubka, Petro"]
[Result "1/2-1/2"]
[ECO "A45"]
[WhiteElo "2336"]
[BlackElo "2471"]
[Annotator "ChessBase"]
[PlyCount "52"]
[EventDate "2019.02.08"]
[EventType "swiss"]
[EventCountry "SWE"]
[SourceTitle "playchess.com"]
[Source "ChessBase"]
[SourceQuality "1"]
[TimeControl "5400+30"]

1. d4 {[%emt 0:00:00]} Nf6 {[%emt 0:00:00]} 2. Bg5 {[%emt 0:00:00]} Ne4 {[%emt 0:00:13]} 3. h4 {[%emt 0:00:04]} c5 {[%emt 0:00:52]} 4. d5 {[%emt 0:00:13]} Qb6 {[%emt 0:00:14]} 5. Nd2 {[%emt 0:00:09]} Nxd2 {[%emt 0:02:11]} 6. Bxd2 {[%emt 0:00:18]} e5 {[%emt 0:00:11]} 7. e4 {[%emt 0:02:13]} Be7 {[%emt 0:02:47]} 8. Bc3 {[%emt 0:05:51]} d6 {[%emt 0:00:18]} 9. f4 {[%emt 0:00:07]} exf4 {[%emt 0:03:00]} 10. Bxg7 {[%emt 0:00:11]} Qb4+ {[%emt 0:01:35]} 11. Bc3 {[%emt 0:17:59]} Qxe4+ {[%emt 0:00:48]} 12. Qe2 {[%emt 0:00:28]} Qxe2+ {[%emt 0:02:18]} 13. Bxe2 {[%emt 0:10:27]} Rg8 {[%emt 0:00:20]} 14. O-O-O {[%emt 0:00:28]} Rxg2 {[%emt 0:14:25]} 15. Re1 {[%emt 0:04:18]} Kd8 {[%emt 0:06:35]} 16. Bf3 {[%emt 0:09:00]} Rg3 {[%emt 0:02:51]} 17. Be4 {[%emt 0:02:57]} Bg4 {[%emt 0:02:12]} 18. Bd2 {[%emt 0:06:04]} f3 {[%emt 0:01:04]} 19. Rf1 {[%emt 0:01:02]} Nd7 {[%emt 0:05:15]} 20. Bf4 {[%emt 0:02:51]} Rg2 {[%emt 0:11:04]} 21. Nxf3 {[%emt 0:02:05]} Bxf3 {[%emt 0:12:51]} 22. Bxf3 {[%emt 0:00:14]} Rg8 {[%emt 0:00:50]} 23. Bh5 {[%emt 0:01:42]} Kc7 {[%emt 0:03:46]} 24. Bxf7 {[%emt 0:00:46]} Rg2 {[%emt 0:00:26]} 25. Be6 {[%emt 0:02:45]} Rf8 {[%emt 0:00:44]} 26. a4 {[%emt 0:11:45]} Ne5 {[%emt 0:02:11]} 1/2-1/2

[Event "Elite Hotels Open 2019"]
[Site "Vaxjo"]
[Date "2019.02.10"]
[Round "8.5"]
[White "Jepson, Christian"]
[Black "Nilsson, Patrik 1978"]
[Result "1-0"]
[ECO "A80"]
[WhiteElo "2389"]
[BlackElo "2169"]
[Annotator "NA"]
[PlyCount "48"]
[EventDate "2019.02.08"]
[EventType "swiss"]
[EventCountry "SWE"]
[SourceTitle "playchess.com"]
[Source "ChessBase"]
[SourceQuality "1"]
[TimeControl "5400+30"]

1. d4 {[%emt 0:05:44]} f5 {[%emt 0:00:00]} 2. Nc3 {[%emt 0:00:06]} Nf6 {[%emt 0:00:14]} 3. Bg5 {[%emt 0:00:23]} d5 {[%emt 0:00:06]} 4. e3 {[%emt 0:00:24]} Be6 {[%emt 0:04:54]} 5. Nf3 {[%emt 0:04:42]} Nbd7 {[%emt 0:03:21]} 6. h4 {[%emt 0:08:05]} Bf7 {[%emt 0:07:14]} 7. Bf4 {[%emt 0:09:19]} a6 {[%emt 0:01:52]} 8. Ne5 {[%emt 0:16:21]} e6 {[%emt 0:01:18]} 9. a3 {[%emt 0:01:05]} c5 {[%emt 0:08:56]} 10. Be2 {[%emt 0:01:52]} Qb6 {[%emt 0:09:00]} 11. O-O {[%emt 0:19:03]} Nxe5 {[%emt 0:08:52]} 12. Bxe5 {[%emt 0:00:23]} Nd7 {[%emt 0:00:39]} 13. Bf4 {[%emt 0:05:03]} Be7 {[%emt 0:02:25]} 14. g3 {[%emt 0:05:40]} Rc8 {[%emt 0:01:35]} 15. Rb1 {[%emt 0:02:24]} h6 {[%emt 0:10:22]} 16. h5 {[%emt 0:00:27]} Bf6 {[%emt 0:00:07]} 17. Na4 {[%emt 0:02:36]} Qa5 {[%emt 0:00:55]} 18. Nxc5 {[%emt 0:01:20]} Qb6 {[%emt 0:15:13]} 19. b4 {[%emt 0:05:44]} Be7 {[%emt 0:02:49]} 20. c4 {[%emt 0:00:39]} Nf6 {[%emt 0:05:26]} 21. cxd5 {[%emt 0:01:49]} exd5 {[%emt 0:00:36]} 22. Qa4+ {[%emt 0:01:02]} Kf8 {[%emt 0:01:16]} 23. Rfc1 {[%emt 0:00:03]} Be8 {[%emt 0:00:50]} 24. Qc2 {[%emt 0:00:52]} Qa7 1-0

[Event "Elite Hotels Open 2019"]
[Site "Vaxjo"]
[Date "2019.02.10"]
[Round "8.6"]
[White "Westerberg, Jonathan"]
[Black "Walinder, Lars"]
[Result "1/2-1/2"]
[ECO "A06"]
[WhiteElo "2544"]
[BlackElo "2245"]
[Annotator "ChessBase"]
[PlyCount "63"]
[EventDate "2019.02.08"]
[EventType "swiss"]
[EventCountry "SWE"]
[SourceTitle "playchess.com"]
[Source "ChessBase"]
[SourceQuality "1"]
[TimeControl "5400+30"]

1. Nf3 {[%emt 0:00:00]} d5 {[%emt 0:00:00]} 2. e3 {[%emt 0:00:00]} Nf6 {[%emt 0:00:08]} 3. c4 {[%emt 0:00:00]} e6 {[%emt 0:00:42]} 4. b3 {[%emt 0:00:03]} Bd6 {[%emt 0:06:13]} 5. Bb2 {[%emt 0:01:07]} Nbd7 {[%emt 0:01:12]} 6. Nc3 {[%emt 0:00:32]} c6 {[%emt 0:02:36]} 7. Qc2 {[%emt 0:00:06]} O-O {[%emt 0:04:26]} 8. Be2 {[%emt 0:00:08]} b6 {[%emt 0:05:26]} 9. Rg1 {[%emt 0:12:49]} Qe7 {[%emt 0:24:25]} 10. g4 {[%emt 0:08:39]} Ba3 {[%emt 0:03:44]} 11. g5 {[%emt 0:00:33]} Ne8 {[%emt 0:00:32]} 12. h4 {[%emt 0:01:20]} Bxb2 {[%emt 0:02:57]} 13. Qxb2 {[%emt 0:00:02]} Nd6 {[%emt 0:01:10]} 14. h5 {[%emt 0:00:08]} Bb7 {[%emt 0:02:06]} 15. h6 {[%emt 0:02:23]} e5 {[%emt 0:04:03]} 16. hxg7 {[%emt 0:01:19]} Kxg7 {[%emt 0:00:40]} 17. d4 {[%emt 0:01:48]} Kg8 {[%emt 0:01:10]} 18. O-O-O {[%emt 0:15:07]} e4 {[%emt 0:02:01]} 19. Nh4 {[%emt 0:01:59]} a5 {[%emt 0:03:04]} 20. c5 {[%emt 0:03:04]} bxc5 {[%emt 0:03:45]} 21. dxc5 {[%emt 0:03:24]} Nxc5 {[%emt 0:01:13]} 22. Kb1 {[%emt 0:00:30]} Qe5 {[%emt 0:10:47]} 23. Rc1 {[%emt 0:02:26]} Nd3 {[%emt 0:13:48]} 24. Bxd3 {[%emt 0:03:53]} exd3 {[%emt 0:00:06]} 25. Na4 {[%emt 0:00:59]} Qe4 {[%emt 0:00:48]} 26. Nc5 {[%emt 0:00:02]} Qe7 {[%emt 0:03:24]} 27. Nxb7 {[%emt 0:09:54]} Qxb7 {[%emt 0:00:30]} 28. g6 {[%emt 0:00:14]} f6 {[%emt 0:01:22]} 29. gxh7+ {[%emt 0:02:35]} Kxh7 {[%emt 0:00:16]} 30. f3 {[%emt 0:00:30]} d2 {[%emt 0:01:42]} 31. Qxd2 {[%emt 0:00:17]} Qb5 {[%emt 0:00:08]} 32. Qh2 1/2-1/2

[Event "Elite Hotels Open 2019"]
[Site "Vaxjo"]
[Date "2019.02.10"]
[Round "8.7"]
[White "Hector, Jonny"]
[Black "Lindahl, Emil"]
[Result "1/2-1/2"]
[ECO "B41"]
[WhiteElo "2488"]
[BlackElo "2160"]
[Annotator "ChessBase"]
[PlyCount "117"]
[EventDate "2019.02.08"]
[EventType "swiss"]
[EventCountry "SWE"]
[SourceTitle "playchess.com"]
[Source "ChessBase"]
[SourceQuality "1"]
[TimeControl "5400+30"]

1. e4 {[%emt 0:00:00]} c5 {[%emt 0:00:00]} 2. Nf3 {[%emt 0:00:00]} e6 {[%emt 0:00:00]} 3. d4 {[%emt 0:00:00]} cxd4 {[%emt 0:00:00]} 4. Nxd4 {[%emt 0:00:03]} a6 {[%emt 0:00:33]} 5. c4 {[%emt 0:00:52]} Nf6 {[%emt 0:01:43]} 6. Nc3 {[%emt 0:00:25]} d6 {[%emt 0:00:34]} 7. Be2 {[%emt 0:02:22]} Be7 {[%emt 0:01:30]} 8. Be3 {[%emt 0:05:48]} Qc7 {[%emt 0:03:38]} 9. Rc1 {[%emt 0:02:13]} Nbd7 {[%emt 0:00:37]} 10. O-O {[%emt 0:02:45]} b6 {[%emt 0:00:36]} 11. f4 {[%emt 0:02:42]} Bb7 {[%emt 0:00:50]} 12. Bf3 {[%emt 0:00:29]} O-O {[%emt 0:00:51]} 13. Qe2 {[%emt 0:04:04]} Rac8 {[%emt 0:04:15]} 14. b3 {[%emt 0:00:22]} Rfe8 {[%emt 0:04:38]} 15. g4 {[%emt 0:04:50]} Nc5 {[%emt 0:07:43]} 16. Bf2 {[%emt 0:08:22]} e5 {[%emt 0:13:05]} 17. fxe5 {[%emt 0:00:52]} dxe5 {[%emt 0:00:24]} 18. Bg3 {[%emt 0:00:45]} Ncxe4 {[%emt 0:10:22]} 19. Nxe4 {[%emt 0:05:28]} Nxe4 {[%emt 0:00:51]} 20. Bxe4 {[%emt 0:00:24]} Bxe4 {[%emt 0:02:35]} 21. Qxe4 {[%emt 0:00:20]} Bc5 {[%emt 0:00:40]} 22. Rcd1 {[%emt 0:03:49]} Qd6 {[%emt 0:04:36]} 23. Kg2 {[%emt 0:20:00]} Bxd4 {[%emt 0:01:18]} 24. Bf2 {[%emt 0:02:58]} Red8 {[%emt 0:03:59]} 25. Rd2 {[%emt 0:04:58]} Qc6 {[%emt 0:16:58]} 26. Qxc6 {[%emt 0:02:03]} Rxc6 {[%emt 0:00:00]} 27. Rfd1 {[%emt 0:02:32]} Rcd6 {[%emt 0:00:38]} 28. Bxd4 {[%emt 0:14:11]} exd4 {[%emt 0:00:54]} 29. Re1 {[%emt 0:00:25]} Kf8 {[%emt 0:02:57]} 30. Re4 {[%emt 0:00:06]} f6 {[%emt 0:03:13]} 31. Kf3 {[%emt 0:00:29]} Kf7 {[%emt 0:00:46]} 32. Ke2 {[%emt 0:00:27]} R8d7 {[%emt 0:06:01]} 33. Kd3 {[%emt 0:00:15]} a5 {[%emt 0:02:04]} 34. a3 {[%emt 0:00:16]} Rd8 {[%emt 0:04:34]} 35. b4 {[%emt 0:00:55]} axb4 {[%emt 0:00:59]} 36. axb4 {[%emt 0:00:02]} Kg6 {[%emt 0:02:18]} 37. h4 {[%emt 0:03:20]} h5 {[%emt 0:00:54]} 38. Rg2 {[%emt 0:00:06]} R8d7 {[%emt 0:00:37]} 39. c5 {[%emt 0:03:16]} bxc5 {[%emt 0:00:14]} 40. bxc5 {[%emt 0:00:04]} Rd5 {[%emt 0:00:15]} 41. Kc4 {[%emt 0:00:11]} Re5 {[%emt 0:01:14]} 42. Rxd4 {[%emt 0:02:04]} Rc7 {[%emt 0:00:27]} 43. gxh5+ {[%emt 0:00:54]} Kxh5 {[%emt 0:00:09]} 44. Rd5 {[%emt 0:00:30]} Rxd5 {[%emt 0:00:10]} 45. Kxd5 {[%emt 0:00:03]} Kxh4 {[%emt 0:00:13]} 46. Kd6 {[%emt 0:00:14]} Ra7 {[%emt 0:00:33]} 47. c6 {[%emt 0:00:30]} g5 {[%emt 0:00:18]} 48. Rc2 {[%emt 0:01:29]} g4 {[%emt 0:00:52]} 49. c7 {[%emt 0:00:06]} Rxc7 {[%emt 0:00:52]} 50. Rxc7 {[%emt 0:00:05]} g3 {[%emt 0:00:12]} 51. Rg7 {[%emt 0:01:55]} Kh3 {[%emt 0:00:46]} 52. Kd5 {[%emt 0:00:06]} Kg2 {[%emt 0:00:37]} 53. Ke4 {[%emt 0:01:43]} Kf2 {[%emt 0:00:26]} 54. Ra7 {[%emt 0:00:23]} g2 {[%emt 0:00:46]} 55. Ra2+ {[%emt 0:00:09]} Kg3 {[%emt 0:00:28]} 56. Ra1 {[%emt 0:00:37]} Kf2 {[%emt 0:00:37]} 57. Kf5 {[%emt 0:00:16]} g1=Q {[%emt 0:00:10]} 58. Rxg1 {[%emt 0:00:03]} Kxg1 {[%emt 0:00:08]} 59. Kxf6 1/2-1/2